[Event "Titled Tuesday Blitz May 16 Late 2023"]
[White "Naroditsky, Daniel"]
[Black "Klukin, Kirill"]
[WhiteFideId "2026961"]
[BlackFideId "24199273"]
[WhiteElo "2633"]
[BlackElo "2344"]
[Result "0-1"]
[Round "03"]
[TimeControl "180+2"]
[Date "2023.05.16"]
[WhiteClock "0:01:27"]
[BlackClock "0:00:56"]

1. d4 {[%clk 0:03:00]}  Nf6 {[%clk 0:02:53]} 2. Nc3 {[%clk 0:03:01]}  d5 {[%clk 0:02:53]} 3. Bf4 {[%clk 0:03:00]}  a6 {[%clk 0:02:53]} 4. e3 {[%clk 0:03:00]}  c5 {[%clk 0:02:54]} 5. dxc5 {[%clk 0:02:55]}  e6 {[%clk 0:02:54]} 6. Nf3 {[%clk 0:02:51]}  Bxc5 {[%clk 0:02:53]} 7. Bd3 {[%clk 0:02:51]}  b5 {[%clk 0:02:48]} 8. O-O {[%clk 0:02:50]}  Bb7 {[%clk 0:02:49]} 9. Qe2 {[%clk 0:02:51]}  O-O {[%clk 0:02:47]} 10. a3 {[%clk 0:02:49]}  Nbd7 {[%clk 0:02:23]} 11. e4 {[%clk 0:02:49]}  dxe4 {[%clk 0:02:18]} 12. Nxe4 {[%clk 0:02:50]}  Nxe4 {[%clk 0:02:18]} 13. Bxe4 {[%clk 0:02:51]}  Bxe4 {[%clk 0:02:18]} 14. Qxe4 {[%clk 0:02:52]}  Nf6 {[%clk 0:02:19]} 15. Qe2 {[%clk 0:02:51]}  Nd5 {[%clk 0:02:10]} 16. Bg3 {[%clk 0:02:43]}  Qf6 {[%clk 0:02:06]} 17. Ne5 {[%clk 0:02:40]}  Rfd8 {[%clk 0:02:01]} 18. Rad1 {[%clk 0:02:38]}  Bd6 {[%clk 0:01:58]} 19. Qe4 {[%clk 0:02:32]}  Bxe5 {[%clk 0:01:53]} 20. Bxe5 {[%clk 0:02:32]}  Qg6 {[%clk 0:01:53]} 21. Qe2 {[%clk 0:02:24]}  Rac8 {[%clk 0:01:53]} 22. c3 {[%clk 0:02:22]}  Rc4 {[%clk 0:01:52]} 23. h3 {[%clk 0:02:09]}  Re4 {[%clk 0:01:48]} 24. Qf3 {[%clk 0:01:48]}  Rxe5 {[%clk 0:01:48]} 25. Rd4 {[%clk 0:01:48]}  h5 {[%clk 0:01:43]} 26. b3 {[%clk 0:01:48]}  Rf5 {[%clk 0:01:36]} 27. Qd3 {[%clk 0:01:46]}  Rc8 {[%clk 0:01:31]} 28. c4 {[%clk 0:01:42]}  Nf4 {[%clk 0:01:23]} 29. Qf3 {[%clk 0:01:42]}  e5 {[%clk 0:01:16]} 30. Rd7 {[%clk 0:01:38]}  e4 {[%clk 0:01:13]} 31. Qxe4 {[%clk 0:01:36]}  Nxh3+ {[%clk 0:01:12]} 32. Kh2 {[%clk 0:01:34]}  Nxf2 {[%clk 0:01:09]} 33. Qb7 {[%clk 0:01:33]}  Ng4+ {[%clk 0:01:03]} 34. Kh3 {[%clk 0:01:30]}  Rxf1 {[%clk 0:00:56]} 35. Qxc8+ {[%clk 0:01:31]}  Kh7 {[%clk 0:00:56]} 36. Rd8 {[%clk 0:01:27]}  Nf2+ {[%clk 0:00:56]} 0-1


[Site "https://www.chess.com"]

[Event "Titled Tuesday Blitz May 16 Late 2023"]
[White "Bartel, Mateusz"]
[Black "Caruana, Fabiano"]
[WhiteFideId "1112635"]
[BlackFideId "2020009"]
[WhiteElo "2521"]
[BlackElo "2837"]
[Result "0-1"]
[Round "03"]
[TimeControl "180+2"]
[Date "2023.05.16"]
[WhiteClock "0:00:00"]
[BlackClock "0:00:52"]

1. e4 {[%clk 0:02:53]}  e5 {[%clk 0:02:59]} 2. Nf3 {[%clk 0:02:52]}  Nc6 {[%clk 0:02:59]} 3. Bb5 {[%clk 0:02:52]}  a6 {[%clk 0:02:57]} 4. Ba4 {[%clk 0:02:52]}  Nf6 {[%clk 0:02:57]} 5. Nc3 {[%clk 0:02:46]}  b5 {[%clk 0:02:51]} 6. Bb3 {[%clk 0:02:45]}  Bc5 {[%clk 0:02:49]} 7. Nd5 {[%clk 0:02:40]}  d6 {[%clk 0:02:44]} 8. c3 {[%clk 0:02:36]}  h6 {[%clk 0:02:37]} 9. d3 {[%clk 0:02:28]}  Rb8 {[%clk 0:02:34]} 10. h3 {[%clk 0:02:26]}  Nxd5 {[%clk 0:02:32]} 11. Bxd5 {[%clk 0:02:19]}  Ne7 {[%clk 0:02:32]} 12. Bb3 {[%clk 0:02:12]}  Bb6 {[%clk 0:02:27]} 13. Nh4 {[%clk 0:01:58]}  g5 {[%clk 0:02:12]} 14. Qh5 {[%clk 0:01:38]}  gxh4 {[%clk 0:01:57]} 15. Bxf7+ {[%clk 0:01:13]}  Kd7 {[%clk 0:01:55]} 16. d4 {[%clk 0:01:13]}  exd4 {[%clk 0:01:45]} 17. e5 {[%clk 0:01:00]}  Kc6 {[%clk 0:01:37]} 18. Qf3+ {[%clk 0:00:42]}  d5 {[%clk 0:01:36]} 19. Bf4 {[%clk 0:00:42]}  Kb7 {[%clk 0:01:33]} 20. e6 {[%clk 0:00:42]}  Nc6 {[%clk 0:01:21]} 21. Rd1 {[%clk 0:00:38]}  Qf6 {[%clk 0:01:17]} 22. Qxd5 {[%clk 0:00:13]}  Qxf4 {[%clk 0:01:15]} 23. O-O {[%clk 0:00:14]}  Rd8 {[%clk 0:01:12]} 24. Qh5 {[%clk 0:00:08]}  Rd6 {[%clk 0:01:05]} 25. Rde1 {[%clk 0:00:07]}  Ne7 {[%clk 0:00:58]} 26. cxd4 {[%clk 0:00:04]}  Bxd4 {[%clk 0:00:57]} 27. Re2 {[%clk 0:00:04]}  Kb6 {[%clk 0:00:54]} 28. b4 {[%clk 0:00:04]}  Bb7 {[%clk 0:00:53]} 29. Rc1 {[%clk 0:00:00]}  Rd5 {[%clk 0:00:52]} 0-1


[Site "https://www.chess.com"]

[Event "Titled Tuesday Blitz May 16 Late 2023"]
[White "Weetik, Vjacheslav"]
[Black "Deac, Bogdan-Daniel"]
[WhiteFideId "4153472"]
[BlackFideId "1226380"]
[WhiteElo "2469"]
[BlackElo "2649"]
[Result "0-1"]
[Round "03"]
[TimeControl "180+2"]
[Date "2023.05.16"]
[WhiteClock "0:00:04"]
[BlackClock "0:00:04"]

1. d4 {[%clk 0:02:59]}  Nf6 {[%clk 0:02:59]} 2. Bf4 {[%clk 0:02:57]}  d6 {[%clk 0:02:59]} 3. Nf3 {[%clk 0:02:57]}  Nbd7 {[%clk 0:02:59]} 4. c4 {[%clk 0:02:57]}  Nh5 {[%clk 0:02:41]} 5. Bc1 {[%clk 0:02:54]}  e5 {[%clk 0:02:41]} 6. Nc3 {[%clk 0:02:52]}  g6 {[%clk 0:02:41]} 7. Bg5 {[%clk 0:02:30]}  f6 {[%clk 0:02:40]} 8. Bh4 {[%clk 0:02:26]}  g5 {[%clk 0:02:21]} 9. Bg3 {[%clk 0:02:24]}  f5 {[%clk 0:02:07]} 10. e3 {[%clk 0:02:09]}  f4 {[%clk 0:01:20]} 11. Nxe5 {[%clk 0:02:01]}  Ndf6 {[%clk 0:01:11]} 12. exf4 {[%clk 0:01:51]}  gxf4 {[%clk 0:01:10]} 13. Bh4 {[%clk 0:01:34]}  dxe5 {[%clk 0:01:09]} 14. dxe5 {[%clk 0:01:35]}  Qxd1+ {[%clk 0:00:36]} 15. Rxd1 {[%clk 0:01:36]}  Ng4 {[%clk 0:00:35]} 16. Nd5 {[%clk 0:01:25]}  Kf7 {[%clk 0:00:29]} 17. Be2 {[%clk 0:01:16]}  Ng7 {[%clk 0:00:18]} 18. Nxc7 {[%clk 0:01:00]}  Rb8 {[%clk 0:00:11]} 19. O-O {[%clk 0:00:20]}  Nxe5 {[%clk 0:00:10]} 20. Rd5 {[%clk 0:00:20]}  Ng6 {[%clk 0:00:09]} 21. Bg5 {[%clk 0:00:18]}  h6 {[%clk 0:00:09]} 22. Bd8 {[%clk 0:00:16]}  Be7 {[%clk 0:00:06]} 23. Rfd1 {[%clk 0:00:14]}  Bf5 {[%clk 0:00:05]} 24. Bxe7 {[%clk 0:00:13]}  Nxe7 {[%clk 0:00:06]} 25. R5d4 {[%clk 0:00:11]}  Ng6 {[%clk 0:00:07]} 26. Nd5 {[%clk 0:00:10]}  Rbd8 {[%clk 0:00:06]} 27. Nxf4 {[%clk 0:00:11]}  Nxf4 {[%clk 0:00:05]} 28. Rxd8 {[%clk 0:00:11]}  Nxe2+ {[%clk 0:00:05]} 29. Kf1 {[%clk 0:00:12]}  Rxd8 {[%clk 0:00:05]} 30. Rxd8 {[%clk 0:00:13]}  Nf4 {[%clk 0:00:05]} 31. b3 {[%clk 0:00:10]}  Bd3+ {[%clk 0:00:04]} 32. Kg1 {[%clk 0:00:09]}  Be4 {[%clk 0:00:05]} 33. Rd7+ {[%clk 0:00:07]}  Kf6 {[%clk 0:00:04]} 34. Rd4 {[%clk 0:00:04]}  Ne2+ {[%clk 0:00:04]} 0-1


[Site "https://www.chess.com"]

[Event "Titled Tuesday Blitz May 16 Late 2023"]
[White "Wu, Derek"]
[Black "Bortnyk, Olexandr"]
[WhiteFideId "30914558"]
[BlackFideId "14120828"]
[WhiteElo "2174"]
[BlackElo "2734"]
[Result "0-1"]
[Round "03"]
[TimeControl "180+2"]
[Date "2023.05.16"]
[WhiteClock "0:00:18"]
[BlackClock "0:00:34"]

1. d4 {[%clk 0:03:00]}  d6 {[%clk 0:02:57]} 2. Nc3 {[%clk 0:02:59]}  Nf6 {[%clk 0:02:57]} 3. e4 {[%clk 0:03:00]}  Nbd7 {[%clk 0:02:57]} 4. Nf3 {[%clk 0:03:00]}  e5 {[%clk 0:02:57]} 5. Bc4 {[%clk 0:02:57]}  Be7 {[%clk 0:02:57]} 6. O-O {[%clk 0:02:55]}  c6 {[%clk 0:02:55]} 7. a4 {[%clk 0:02:55]}  O-O {[%clk 0:02:49]} 8. Re1 {[%clk 0:02:52]}  Qc7 {[%clk 0:02:48]} 9. h3 {[%clk 0:02:50]}  h6 {[%clk 0:02:44]} 10. Be3 {[%clk 0:02:42]}  Re8 {[%clk 0:02:42]} 11. Qb1 {[%clk 0:02:37]}  Nf8 {[%clk 0:02:33]} 12. Qa2 {[%clk 0:02:34]}  Bd8 {[%clk 0:02:17]} 13. Rad1 {[%clk 0:02:23]}  Ng6 {[%clk 0:02:11]} 14. b4 {[%clk 0:02:05]}  a6 {[%clk 0:02:10]} 15. a5 {[%clk 0:02:01]}  Be6 {[%clk 0:01:56]} 16. dxe5 {[%clk 0:01:47]}  dxe5 {[%clk 0:01:38]} 17. Nd2 {[%clk 0:01:40]}  Qc8 {[%clk 0:01:32]} 18. Na4 {[%clk 0:01:36]}  Kh7 {[%clk 0:01:26]} 19. Nc5 {[%clk 0:01:34]}  Bxh3 {[%clk 0:01:23]} 20. Bxf7 {[%clk 0:01:30]}  Qg4 {[%clk 0:01:22]} 21. g3 {[%clk 0:01:25]}  Nh5 {[%clk 0:01:11]} 22. Bxe8 {[%clk 0:01:10]}  Nxg3 {[%clk 0:01:01]} 23. Bxg6+ {[%clk 0:01:09]}  Kh8 {[%clk 0:00:34]} 24. Kh2 {[%clk 0:00:18]}  Nf1+ {[%clk 0:00:34]} 0-1


[Site "https://www.chess.com"]

[Event "Titled Tuesday Blitz May 16 Late 2023"]
[White "Makarian, Rudik"]
[Black "Goltsev, Dmitry"]
[WhiteFideId "44105681"]
[BlackFideId "24176710"]
[WhiteElo "2461"]
[BlackElo "2356"]
[Result "1-0"]
[Round "03"]
[TimeControl "180+2"]
[Date "2023.05.16"]
[WhiteClock "0:00:03"]
[BlackClock "0:00:02"]

1. d4 {[%clk 0:03:00]}  Nf6 {[%clk 0:02:59]} 2. c4 {[%clk 0:02:59]}  e6 {[%clk 0:02:59]} 3. Nf3 {[%clk 0:02:59]}  b6 {[%clk 0:02:59]} 4. g3 {[%clk 0:02:59]}  Ba6 {[%clk 0:02:56]} 5. b3 {[%clk 0:02:59]}  Bb4+ {[%clk 0:02:56]} 6. Bd2 {[%clk 0:02:58]}  Be7 {[%clk 0:02:57]} 7. Bg2 {[%clk 0:02:58]}  d5 {[%clk 0:02:57]} 8. O-O {[%clk 0:02:54]}  O-O {[%clk 0:02:56]} 9. Nc3 {[%clk 0:02:53]}  c6 {[%clk 0:02:54]} 10. Bf4 {[%clk 0:02:45]}  Nbd7 {[%clk 0:02:54]} 11. Qc2 {[%clk 0:02:42]}  dxc4 {[%clk 0:02:48]} 12. bxc4 {[%clk 0:02:35]}  Bxc4 {[%clk 0:02:48]} 13. Nd2 {[%clk 0:02:14]}  Ba6 {[%clk 0:02:41]} 14. Bxc6 {[%clk 0:02:15]}  Rc8 {[%clk 0:02:30]} 15. Qa4 {[%clk 0:02:15]}  Bb7 {[%clk 0:02:12]} 16. Bxb7 {[%clk 0:02:12]}  Rxc3 {[%clk 0:02:13]} 17. Rac1 {[%clk 0:02:10]}  Ra3 {[%clk 0:02:11]} 18. Qc2 {[%clk 0:02:05]}  Nd5 {[%clk 0:02:06]} 19. Nc4 {[%clk 0:01:25]}  Rc3 {[%clk 0:01:37]} 20. Qd2 {[%clk 0:01:25]}  Bb4 {[%clk 0:01:23]} 21. Rxc3 {[%clk 0:01:17]}  Bxc3 {[%clk 0:01:17]} 22. Qd3 {[%clk 0:01:18]}  Nxf4 {[%clk 0:01:09]} 23. gxf4 {[%clk 0:01:18]}  Qc7 {[%clk 0:01:00]} 24. Be4 {[%clk 0:00:36]}  Qxf4 {[%clk 0:00:59]} 25. Bxh7+ {[%clk 0:00:22]}  Kh8 {[%clk 0:00:59]} 26. Qh3 {[%clk 0:00:20]}  Qh6 {[%clk 0:00:41]} 27. Qxc3 {[%clk 0:00:17]}  Qxh7 {[%clk 0:00:38]} 28. Qf3 {[%clk 0:00:14]}  Nf6 {[%clk 0:00:34]} 29. Ne5 {[%clk 0:00:14]}  Qe4 {[%clk 0:00:33]} 30. Qxe4 {[%clk 0:00:14]}  Nxe4 {[%clk 0:00:34]} 31. Rc1 {[%clk 0:00:14]}  Kh7 {[%clk 0:00:31]} 32. Rc7 {[%clk 0:00:14]}  f6 {[%clk 0:00:31]} 33. Nc6 {[%clk 0:00:13]}  Nc3 {[%clk 0:00:28]} 34. e3 {[%clk 0:00:12]}  a5 {[%clk 0:00:28]} 35. Nxa5 {[%clk 0:00:09]}  Nxa2 {[%clk 0:00:24]} 36. Nc6 {[%clk 0:00:09]}  Nc3 {[%clk 0:00:19]} 37. Re7 {[%clk 0:00:09]}  Ra8 {[%clk 0:00:13]} 38. Rxe6 {[%clk 0:00:08]}  Ra2 {[%clk 0:00:13]} 39. Re7 {[%clk 0:00:06]}  Nd1 {[%clk 0:00:13]} 40. d5 {[%clk 0:00:05]}  Nxf2 {[%clk 0:00:12]} 41. d6 {[%clk 0:00:05]}  Nh3+ {[%clk 0:00:06]} 42. Kf1 {[%clk 0:00:04]}  Rxh2 {[%clk 0:00:04]} 43. d7 {[%clk 0:00:04]}  Rd2 {[%clk 0:00:05]} 44. Nd4 {[%clk 0:00:05]}  Nf2 {[%clk 0:00:02]} 45. d8=Q {[%clk 0:00:05]}  Nd3 {[%clk 0:00:01]} 46. Kg1 {[%clk 0:00:03]}  Rf2 {[%clk 0:00:02]} 47. Ne6 {[%clk 0:00:02]}  Rf3 {[%clk 0:00:01]} 48. Rxg7+ {[%clk 0:00:03]}  Kh6 {[%clk 0:00:02]} 49. Qh8# {[%clk 0:00:03]} 1-0


[Site "https://www.chess.com"]

[Event "Titled Tuesday Blitz May 16 Late 2023"]
[White "Nazari, Arad"]
[Black "Rustemov, Alexander"]
[WhiteFideId "12577324"]
[BlackFideId "4119002"]
[WhiteElo "2175"]
[BlackElo "2985"]
[Result "0-1"]
[Round "03"]
[TimeControl "180+2"]
[Date "2023.05.16"]
[WhiteClock "0:00:08"]
[BlackClock "0:01:46"]

1. e4 {[%clk 0:03:00]}  e6 {[%clk 0:02:59]} 2. d4 {[%clk 0:03:00]}  d5 {[%clk 0:03:00]} 3. e5 {[%clk 0:02:58]}  c5 {[%clk 0:02:58]} 4. c3 {[%clk 0:02:57]}  Qb6 {[%clk 0:02:58]} 5. Nf3 {[%clk 0:02:55]}  Bd7 {[%clk 0:02:59]} 6. Be2 {[%clk 0:02:50]}  cxd4 {[%clk 0:02:56]} 7. cxd4 {[%clk 0:02:46]}  Bb5 {[%clk 0:02:56]} 8. Nc3 {[%clk 0:02:28]}  Bb4 {[%clk 0:02:54]} 9. O-O {[%clk 0:02:27]}  Bxc3 {[%clk 0:02:50]} 10. Bxb5+ {[%clk 0:02:26]}  Qxb5 {[%clk 0:02:49]} 11. a4 {[%clk 0:02:26]}  Qd7 {[%clk 0:02:39]} 12. bxc3 {[%clk 0:02:26]}  Ne7 {[%clk 0:02:39]} 13. h4 {[%clk 0:02:21]}  O-O {[%clk 0:02:37]} 14. Qd3 {[%clk 0:02:18]}  h6 {[%clk 0:02:36]} 15. a5 {[%clk 0:01:59]}  Nbc6 {[%clk 0:02:35]} 16. Ba3 {[%clk 0:01:59]}  Rfc8 {[%clk 0:02:31]} 17. h5 {[%clk 0:01:46]}  Qd8 {[%clk 0:02:19]} 18. Nh2 {[%clk 0:01:33]}  b6 {[%clk 0:02:13]} 19. axb6 {[%clk 0:01:29]}  axb6 {[%clk 0:02:13]} 20. f4 {[%clk 0:01:22]}  Ra5 {[%clk 0:02:04]} 21. Bd6 {[%clk 0:01:03]}  Rxa1 {[%clk 0:02:01]} 22. Rxa1 {[%clk 0:01:02]}  Ra8 {[%clk 0:02:01]} 23. Rb1 {[%clk 0:00:53]}  Nf5 {[%clk 0:01:59]} 24. Bb4 {[%clk 0:00:38]}  Qh4 {[%clk 0:01:56]} 25. g4 {[%clk 0:00:29]}  Nxb4 {[%clk 0:01:49]} 26. cxb4 {[%clk 0:00:08]}  Ra2 {[%clk 0:01:46]} 0-1


[Site "https://www.chess.com"]

[Event "Titled Tuesday Blitz May 16 Late 2023"]
[White "Rastbod, Ali"]
[Black "Svane, Frederik"]
[WhiteFideId "12567477"]
[BlackFideId "12923044"]
[WhiteElo "2274"]
[BlackElo "2502"]
[Result "0-1"]
[Round "03"]
[TimeControl "180+2"]
[Date "2023.05.16"]
[WhiteClock "0:00:00"]
[BlackClock "0:00:06"]

1. d4 {[%clk 0:02:53]}  Nf6 {[%clk 0:02:59]} 2. c4 {[%clk 0:02:51]}  e6 {[%clk 0:03:00]} 3. g3 {[%clk 0:02:50]}  d5 {[%clk 0:02:59]} 4. Bg2 {[%clk 0:02:50]}  dxc4 {[%clk 0:03:00]} 5. Nf3 {[%clk 0:02:49]}  a6 {[%clk 0:03:00]} 6. O-O {[%clk 0:02:48]}  Nc6 {[%clk 0:03:00]} 7. e3 {[%clk 0:02:22]}  Nd7 {[%clk 0:02:59]} 8. Qe2 {[%clk 0:02:18]}  Nb6 {[%clk 0:02:50]} 9. Nbd2 {[%clk 0:02:16]}  e5 {[%clk 0:02:37]} 10. Nxc4 {[%clk 0:01:54]}  Nxc4 {[%clk 0:02:35]} 11. Qxc4 {[%clk 0:01:54]}  Be6 {[%clk 0:02:34]} 12. Qa4 {[%clk 0:01:37]}  e4 {[%clk 0:02:17]} 13. Ne5 {[%clk 0:01:31]}  Bd5 {[%clk 0:02:14]} 14. f3 {[%clk 0:01:15]}  exf3 {[%clk 0:01:52]} 15. Bxf3 {[%clk 0:01:16]}  Bxf3 {[%clk 0:01:45]} 16. Rxf3 {[%clk 0:01:17]}  Qd5 {[%clk 0:01:45]} 17. Nxc6 {[%clk 0:00:24]}  Qxf3 {[%clk 0:01:34]} 18. Ne5+ {[%clk 0:00:23]}  b5 {[%clk 0:01:34]} 19. Qb3 {[%clk 0:00:22]}  Qf6 {[%clk 0:01:27]} 20. Bd2 {[%clk 0:00:20]}  Bd6 {[%clk 0:00:54]} 21. Rf1 {[%clk 0:00:19]}  Qe6 {[%clk 0:00:55]} 22. Nxf7 {[%clk 0:00:07]}  Qxb3 {[%clk 0:00:54]} 23. axb3 {[%clk 0:00:07]}  O-O {[%clk 0:00:41]} 24. Nxd6 {[%clk 0:00:06]}  cxd6 {[%clk 0:00:42]} 25. Ra1 {[%clk 0:00:04]}  Kf7 {[%clk 0:00:40]} 26. e4 {[%clk 0:00:05]}  Ke6 {[%clk 0:00:32]} 27. d5+ {[%clk 0:00:03]}  Kd7 {[%clk 0:00:22]} 28. Bc3 {[%clk 0:00:03]}  g6 {[%clk 0:00:22]} 29. b4 {[%clk 0:00:03]}  Rfe8 {[%clk 0:00:19]} 30. Re1 {[%clk 0:00:04]}  Rac8 {[%clk 0:00:14]} 31. Kf2 {[%clk 0:00:05]}  Rc4 {[%clk 0:00:15]} 32. Kf3 {[%clk 0:00:05]}  Re7 {[%clk 0:00:08]} 33. g4 {[%clk 0:00:06]}  Rf7+ {[%clk 0:00:08]} 34. Kg3 {[%clk 0:00:06]}  Re7 {[%clk 0:00:08]} 35. Kf4 {[%clk 0:00:06]}  Re8 {[%clk 0:00:09]} 36. g5 {[%clk 0:00:06]}  Rf8+ {[%clk 0:00:09]} 37. Kg3 {[%clk 0:00:07]}  Rf7 {[%clk 0:00:09]} 38. h4 {[%clk 0:00:07]}  Re7 {[%clk 0:00:08]} 39. Kf4 {[%clk 0:00:07]}  Rf7+ {[%clk 0:00:06]} 40. Kg3 {[%clk 0:00:07]}  Rf8 {[%clk 0:00:07]} 41. Re2 {[%clk 0:00:04]}  Ra8 {[%clk 0:00:07]} 42. Rf2 {[%clk 0:00:04]}  Rxe4 {[%clk 0:00:06]} 43. Rf7+ {[%clk 0:00:04]}  Re7 {[%clk 0:00:06]} 44. Rf1 {[%clk 0:00:04]}  Rc8 {[%clk 0:00:06]} 45. Bf6 {[%clk 0:00:04]}  Re4 {[%clk 0:00:06]} 46. Rf3 {[%clk 0:00:03]}  Rcc4 {[%clk 0:00:06]} 47. Ra3 {[%clk 0:00:03]}  Rg4+ {[%clk 0:00:06]} 48. Kf2 {[%clk 0:00:03]}  Rcf4+ {[%clk 0:00:06]} 49. Ke2 {[%clk 0:00:03]}  Re4+ {[%clk 0:00:06]} 50. Kf3 {[%clk 0:00:04]}  Ref4+ {[%clk 0:00:06]} 51. Ke2 {[%clk 0:00:04]}  Rxb4 {[%clk 0:00:06]} 52. Rxa6 {[%clk 0:00:04]}  Rbc4 {[%clk 0:00:06]} 53. Ra7+ {[%clk 0:00:03]}  Rc7 {[%clk 0:00:07]} 54. Ra8 {[%clk 0:00:04]}  Rc2+ {[%clk 0:00:05]} 55. Kd3 {[%clk 0:00:04]}  Rcc4 {[%clk 0:00:05]} 56. Ra7+ {[%clk 0:00:03]}  Rc7 {[%clk 0:00:05]} 57. Ra8 {[%clk 0:00:04]}  Rc5 {[%clk 0:00:05]} 58. Ra7+ {[%clk 0:00:04]}  Kc8 {[%clk 0:00:06]} 59. Rxh7 {[%clk 0:00:04]}  Rxd5+ {[%clk 0:00:06]} 60. Ke3 {[%clk 0:00:04]}  Rf5 {[%clk 0:00:06]} 61. Rh6 {[%clk 0:00:04]}  b4 {[%clk 0:00:06]} 62. Rxg6 {[%clk 0:00:03]}  Rxh4 {[%clk 0:00:06]} 63. Rg7 {[%clk 0:00:04]}  Rg4 {[%clk 0:00:06]} 64. Re7 {[%clk 0:00:04]}  Rgxg5 {[%clk 0:00:05]} 65. Bxg5 {[%clk 0:00:03]}  Rxg5 {[%clk 0:00:06]} 66. Kd4 {[%clk 0:00:04]}  Rg4+ {[%clk 0:00:06]} 67. Kd5 {[%clk 0:00:04]}  Kd8 {[%clk 0:00:06]} 68. Re6 {[%clk 0:00:03]}  Kc7 {[%clk 0:00:06]} 69. Re7+ {[%clk 0:00:03]}  Kb6 {[%clk 0:00:06]} 70. Re6 {[%clk 0:00:04]}  Rg2 {[%clk 0:00:06]} 71. Kc4 {[%clk 0:00:03]}  Rg4+ {[%clk 0:00:05]} 72. Kd5 {[%clk 0:00:02]}  Kb5 {[%clk 0:00:05]} 73. Rxd6 {[%clk 0:00:02]}  Rg2 {[%clk 0:00:05]} 74. Ke5 {[%clk 0:00:02]}  Re2+ {[%clk 0:00:05]} 75. Kd4 {[%clk 0:00:01]}  Rd2+ {[%clk 0:00:05]} 76. Ke5 {[%clk 0:00:02]}  Rxd6 {[%clk 0:00:04]} 77. Kxd6 {[%clk 0:00:03]}  Kc4 {[%clk 0:00:05]} 78. Kc6 {[%clk 0:00:04]}  b3 {[%clk 0:00:06]} 79. Kb6 {[%clk 0:00:04]}  Kd3 {[%clk 0:00:06]} 80. Ka5 {[%clk 0:00:00]}  Kc2 {[%clk 0:00:06]} 0-1


[Site "https://www.chess.com"]

[Event "Titled Tuesday Blitz May 16 Late 2023"]
[White "Jaracz, Pawel"]
[Black "Tang, Andrew"]
[WhiteFideId "1102222"]
[BlackFideId "2059630"]
[WhiteElo "2438"]
[BlackElo "2596"]
[Result "1-0"]
[Round "03"]
[TimeControl "180+2"]
[Date "2023.05.16"]
[WhiteClock "0:00:06"]
[BlackClock "0:00:06"]

1. e4 {[%clk 0:01:47]}  e5 {[%clk 0:02:57]} 2. Nf3 {[%clk 0:01:47]}  Nc6 {[%clk 0:02:58]} 3. Bb5 {[%clk 0:01:46]}  g6 {[%clk 0:02:58]} 4. c3 {[%clk 0:01:44]}  a6 {[%clk 0:02:57]} 5. Ba4 {[%clk 0:01:43]}  Bg7 {[%clk 0:02:57]} 6. d4 {[%clk 0:01:42]}  exd4 {[%clk 0:02:58]} 7. cxd4 {[%clk 0:01:42]}  b5 {[%clk 0:02:58]} 8. Bb3 {[%clk 0:01:42]}  Na5 {[%clk 0:02:59]} 9. Bc2 {[%clk 0:01:41]}  Ne7 {[%clk 0:02:59]} 10. O-O {[%clk 0:01:30]}  O-O {[%clk 0:02:59]} 11. Nc3 {[%clk 0:01:18]}  d6 {[%clk 0:02:56]} 12. h3 {[%clk 0:01:18]}  c5 {[%clk 0:02:53]} 13. Bf4 {[%clk 0:01:08]}  cxd4 {[%clk 0:02:25]} 14. Nxd4 {[%clk 0:01:08]}  Nc4 {[%clk 0:02:25]} 15. b3 {[%clk 0:01:06]}  Na3 {[%clk 0:02:26]} 16. Rc1 {[%clk 0:00:59]}  Bb7 {[%clk 0:02:19]} 17. Nde2 {[%clk 0:00:54]}  b4 {[%clk 0:02:00]} 18. Na4 {[%clk 0:00:51]}  Nb5 {[%clk 0:01:54]} 19. Bd3 {[%clk 0:00:51]}  Re8 {[%clk 0:01:47]} 20. Qd2 {[%clk 0:00:50]}  Nc6 {[%clk 0:01:44]} 21. Rfd1 {[%clk 0:00:45]}  Ne5 {[%clk 0:01:27]} 22. f3 {[%clk 0:00:44]}  Bc8 {[%clk 0:00:24]} 23. Bc4 {[%clk 0:00:39]}  Nxc4 {[%clk 0:00:08]} 24. bxc4 {[%clk 0:00:38]}  Na3 {[%clk 0:00:05]} 25. c5 {[%clk 0:00:36]}  Bd7 {[%clk 0:00:03]} 26. Nb6 {[%clk 0:00:35]}  Ra7 {[%clk 0:00:02]} 27. c6 {[%clk 0:00:33]}  Qxb6+ {[%clk 0:00:03]} 28. Be3 {[%clk 0:00:32]}  Qc7 {[%clk 0:00:02]} 29. cxd7 {[%clk 0:00:31]}  Qxd7 {[%clk 0:00:02]} 30. Bxa7 {[%clk 0:00:31]}  Qxa7+ {[%clk 0:00:03]} 31. Kh1 {[%clk 0:00:32]}  a5 {[%clk 0:00:03]} 32. Qxd6 {[%clk 0:00:30]}  Qe3 {[%clk 0:00:02]} 33. Ng3 {[%clk 0:00:25]}  Be5 {[%clk 0:00:02]} 34. Qd7 {[%clk 0:00:25]}  Re6 {[%clk 0:00:03]} 35. Nf1 {[%clk 0:00:25]}  Qf4 {[%clk 0:00:03]} 36. Qd2 {[%clk 0:00:18]}  Qf6 {[%clk 0:00:03]} 37. Ne3 {[%clk 0:00:17]}  Bf4 {[%clk 0:00:02]} 38. Nd5 {[%clk 0:00:17]}  Bxd2 {[%clk 0:00:01]} 39. Nxf6+ {[%clk 0:00:17]}  Rxf6 {[%clk 0:00:02]} 40. Rxd2 {[%clk 0:00:18]}  Ra6 {[%clk 0:00:02]} 41. Rd8+ {[%clk 0:00:16]}  Kg7 {[%clk 0:00:03]} 42. Rd7 {[%clk 0:00:16]}  a4 {[%clk 0:00:03]} 43. Rcc7 {[%clk 0:00:16]}  b3 {[%clk 0:00:03]} 44. Rxf7+ {[%clk 0:00:16]}  Kh6 {[%clk 0:00:04]} 45. h4 {[%clk 0:00:15]}  g5 {[%clk 0:00:04]} 46. Rxh7+ {[%clk 0:00:14]}  Kg6 {[%clk 0:00:04]} 47. Rhg7+ {[%clk 0:00:14]}  Kf6 {[%clk 0:00:05]} 48. hxg5+ {[%clk 0:00:14]}  Ke5 {[%clk 0:00:06]} 49. axb3 {[%clk 0:00:14]}  axb3 {[%clk 0:00:05]} 50. Rb7 {[%clk 0:00:14]}  Kf4 {[%clk 0:00:06]} 51. Kh2 {[%clk 0:00:14]}  Nc4 {[%clk 0:00:04]} 52. Rxb3 {[%clk 0:00:13]}  Nd2 {[%clk 0:00:05]} 53. Rd3 {[%clk 0:00:07]}  Ra2 {[%clk 0:00:05]} 54. Kh3 {[%clk 0:00:05]}  Nc4 {[%clk 0:00:04]} 55. Rf7+ {[%clk 0:00:02]}  Kxg5 {[%clk 0:00:05]} 56. Rd5+ {[%clk 0:00:02]}  Kg6 {[%clk 0:00:05]} 57. Rf4 {[%clk 0:00:02]}  Ra1 {[%clk 0:00:06]} 58. Kg3 {[%clk 0:00:01]}  Ne3 {[%clk 0:00:05]} 59. Re5 {[%clk 0:00:01]}  Nf1+ {[%clk 0:00:05]} 60. Kg4 {[%clk 0:00:01]}  Ra2 {[%clk 0:00:06]} 61. Re6+ {[%clk 0:00:02]}  Kg7 {[%clk 0:00:07]} 62. Rff6 {[%clk 0:00:02]}  Ne3+ {[%clk 0:00:05]} 63. Kg5 {[%clk 0:00:03]}  Rxg2+ {[%clk 0:00:05]} 64. Kf4 {[%clk 0:00:02]}  Re2 {[%clk 0:00:05]} 65. Rg6+ {[%clk 0:00:02]}  Kf7 {[%clk 0:00:05]} 66. Ref6+ {[%clk 0:00:02]}  Ke7 {[%clk 0:00:06]} 67. Re6+ {[%clk 0:00:03]}  Kf7 {[%clk 0:00:07]} 68. Ref6+ {[%clk 0:00:04]}  Ke7 {[%clk 0:00:07]} 69. Ra6 {[%clk 0:00:04]}  Kf7 {[%clk 0:00:07]} 70. Rh6 {[%clk 0:00:04]}  Kg7 {[%clk 0:00:08]} 71. Rhg6+ {[%clk 0:00:04]}  Kf7 {[%clk 0:00:08]} 72. Rgb6 {[%clk 0:00:05]}  Ng2+ {[%clk 0:00:06]} 73. Ke5 {[%clk 0:00:05]}  Nh4 {[%clk 0:00:06]} 74. Ra7+ {[%clk 0:00:05]}  Kg8 {[%clk 0:00:06]} 75. Rb8# {[%clk 0:00:06]} 1-0


[Site "https://www.chess.com"]